fUST/lending_fUST_20251231
["ID","MTS","AMOUNT","RATE_DAILY","PERIOD"]
[400107904,1767123047234,-2671.67802026,0.00025,2]
[400107905,1767123047244,-10364.0,0.00025,2]
[400107906,1767123047253,-150.0,0.00025,2]
[400107907,1767123047262,-500.0,0.00025,2]
[400107908,1767123047271,-1123.0,0.00025,5]
[400107909,1767123047280,-758.33034177,0.00025,2]
[400107910,1767123047290,-6362.12609487,0.00025,30]
[400107911,1767123047299,-161.72349688,0.00025048,16]
[400107912,1767123047308,-150.0,0.00025069,2]
[400107913,1767123047317,-500.0,0.00025082,7]
[400107914,1767123047327,-500.0,0.00025087,7]
[400107915,1767123047336,-282.64,0.000251,7]
[400107916,1767123047346,-151.0,0.00025117,7]
[400107917,1767123047355,-151.0,0.00025117,7]
[400107918,1767123047364,-151.0,0.00025127,7]
[400107919,1767123047374,-151.0,0.00025127,7]
[400107920,1767123047384,-12872.30624705,0.0002513,3]
[400107921,1767123047395,-337.2,0.0002513,3]
[400107928,1767123891879,1540.05454507,0.00012771,2]
[400107929,1767123891903,3459.94545493,0.00012771,2]
[400107930,1767124052130,-150.0,0.0001314,2]
[400107931,1767124052149,-606.0,0.0001314,2]
[400107932,1767124052168,-500.0,0.00013273,2]
[400107933,1767124052187,-500.0,0.00013273,2]
[400107934,1767124052206,-3449.03860359,0.00013599,2]
[400107935,1767124052225,-171.6074601,0.0001365,2]
[400107936,1767124052244,-1200.0,0.00013697,2]
[400107937,1767124052264,-300.0,0.00013697,2]
[400107938,1767124052285,-500.0,0.00013697,2]
[400107939,1767124052304,-500.0,0.00013698,2]
[400107940,1767124052323,-500.0,0.00013698,2]
[400107941,1767124052342,-500.0,0.00013698,2]
[400107942,1767124052361,-500.0,0.00013698,2]
[400107943,1767124052380,-500.0,0.00013698,2]
[400107944,1767124052399,-500.0,0.00013698,2]
[400107945,1767124052421,-500.0,0.00013698,2]
[400107946,1767124052440,-500.0,0.00013698,2]
[400107947,1767124052459,-500.0,0.00013698,2]
[400107948,1767124052477,-500.0,0.00013698,2]
[400107949,1767124052498,-500.0,0.00013698,2]
[400107950,1767124052517,-500.0,0.00013698,2]
[400107951,1767124052535,-1000.0,0.00013699,2]
[400107952,1767124052554,-407.11553711,0.00013699,2]
[400107953,1767124052573,-267.00607037,0.00013821,2]
[400107954,1767124052591,-1000.0,0.00013821,2]
[400107955,1767124052610,-525.603904,0.0001397,2]
[400107956,1767124052629,-500.0,0.0001397,2]
[400107957,1767124052649,-500.0,0.0001397,2]
[400107958,1767124052670,-7.76343984,0.0001397,2]
[400107959,1767124146146,-492.23656016,0.0001397,2]
[400107960,1767124146166,-300.0,0.0001397,2]
[400107961,1767124146186,-2769.04313657,0.00013971,2]
[400107965,1767124231776,-437.315,0.00013699,2]
[400107966,1767124231830,-46.836471,0.00013699,2]
[400107967,1767124231839,-150.0,0.00013834,2]
[400107968,1767124231848,-399.44,0.0001397,2]
[400107969,1767124231858,-300.0,0.0001397,2]
[400107970,1767124231867,-1200.0,0.0001397,2]
[400107971,1767124231876,-500.0,0.0001397,2]
[400107972,1767124231886,-500.0,0.0001397,2]
[400107973,1767124231895,-500.0,0.0001397,2]
[400107974,1767124231905,-47230.95686343,0.00013971,2]
[400107975,1767124231914,-300.0,0.00013971,2]
[400107977,1767124231923,-300.0,0.00013971,2]
[400107979,1767124231932,-300.0,0.00013971,2]
[400107981,1767124231941,-300.0,0.00013971,2]
[400107983,1767124231950,-300.0,0.00013971,2]
[400107985,1767124231959,-300.0,0.00013971,2]
[400107987,1767124231970,-300.0,0.00013971,2]
[400107989,1767124231981,-300.0,0.00013971,2]
[400107991,1767124231990,-300.0,0.00013971,2]
[400107993,1767124232000,-300.0,0.00013971,2]
[400107994,1767124232009,-300.0,0.00013971,2]
[400107996,1767124232019,-300.0,0.00013971,2]
[400107998,1767124232029,-300.0,0.00013971,2]
[400108000,1767124232039,-300.0,0.00013971,2]
[400108002,1767124232049,-300.0,0.00013971,2]
[400108004,1767124232057,-600.0,0.00014249,2]
[400108006,1767124232066,-500.0,0.00014888,2]
[400108008,1767124232076,-500.0,0.00014888,2]
[400108010,1767124232085,-500.0,0.00014888,2]
[400108012,1767124232094,-420.0,0.00015305,2]
[400108013,1767124232103,-1680.0,0.00015367,2]
[400108015,1767124232112,-720.0,0.00015674,2]
[400108017,1767124232122,-1211.39571987,0.00015687,2]
[400108019,1767124232130,-239.90233463,0.00015697,2]
[400108021,1767124232140,-177.0,0.00015834,2]
[400108023,1767124232149,-12158.9884565,0.00016128,2]
[400108025,1767124232158,-587.0,0.00016768,2]
[400108027,1767124232168,-2351.0,0.00016904,2]
[400108029,1767124232177,-864.0,0.00017242,2]
[400108031,1767124232187,-204.0,0.00017834,2]
[400108033,1767124232196,-823.0,0.00018371,2]
[400108035,1767124232205,-1683.02184843,0.00018594,2]
[400108240,1767124237926,-1608.97815157,0.00018594,2]
[400108242,1767124237936,-1000.0,0.00018966,2]
[400108244,1767124237945,-237.72465164,0.00019177,2]
[400108284,1767124246623,-262.27534836,0.00019177,2]
[400108285,1767124246634,-500.0,0.00019177,2]
[400108286,1767124246646,-500.0,0.00019177,2]
[400108287,1767124246657,-500.0,0.00019178,2]
[400108288,1767124246669,-500.0,0.00019178,2]
[400108289,1767124246680,-500.0,0.00019178,2]
[400108290,1767124246692,-500.0,0.00019178,2]
[400108291,1767124246705,-500.0,0.00019178,2]
[400108292,1767124246716,-216.71737516,0.00019178,2]
[400108293,1767124246729,-500.0,0.00019178,2]
[400108294,1767124246741,-231.0,0.00019834,2]
[400108295,1767124246754,-215.0,0.00020127,2]
[400108296,1767124246767,-484.151471,0.00020187,2]
[400108297,1767124246780,-500.0,0.00020296,2]
[400108298,1767124246791,-412.34915023,0.00020296,2]
[400108299,1767124246896,-87.65084977,0.00020296,2]
[400108300,1767124246909,-575.22568796,0.00020453,2]
[400108302,1767125155154,150.0,0.00012279,2]
[400108304,1767125356150,-3690.77273089,0.00013619,2]
[400108305,1767125356170,-1200.0,0.00013698,2]
[400108306,1767125356190,-300.0,0.00013698,2]
[400108307,1767125356211,-300.0,0.00013698,2]
[400108308,1767125356345,-31941.9370876,0.00013699,2]
[400108309,1767125356371,-150.0,0.0001372,2]
[400108310,1767125356392,-1200.0,0.00013967,2]
[400108311,1767125356415,-244.0,0.00013968,2]
[400108312,1767125356437,-300.0,0.00013968,2]
[400108313,1767125356459,-162.36600044,0.00013968,2]
[400108314,1767125356479,-379.50148411,0.00013968,2]
[400108315,1767125356498,-317.52131658,0.00013968,2]
[400108316,1767125356518,-500.0,0.00013969,2]
[400108317,1767125356537,-337.34169357,0.00013969,2]
[400108318,1767125356557,-25527.12810756,0.00013969,2]
[400108319,1767125366143,-7882.44038504,0.00013969,2]
[400108345,1767125431808,-283.34900001,0.00013969,2]
[400108460,1767125437899,-216.65099999,0.00013969,2]
[400108461,1767125437908,-500.0,0.00013969,2]
[400108462,1767125437918,-1200.0,0.00013969,2]
[400108463,1767125437927,-500.0,0.0001397,2]
[400108464,1767125437936,-500.0,0.0001397,2]
[400108465,1767125437945,-500.0,0.0001397,2]
[400108466,1767125437955,-500.0,0.0001397,2]
[400108467,1767125437964,-1588.90700946,0.00014612,2]
[400108468,1767125437974,-500.0,0.00014612,2]
[400108469,1767125437983,-262.24821638,0.00014612,2]
[400108470,1767125437992,-327.77889527,0.00014612,2]
[400108471,1767125438001,-1588.90700946,0.00014612,2]
[400108472,1767125438011,-1588.90700946,0.00014612,2]
[400108473,1767125438020,-1588.90700946,0.00014612,2]
[400108474,1767125438030,-1588.90700946,0.00014612,2]
[400108475,1767125438039,-1588.90700946,0.00014612,2]
[400108476,1767125438049,-1588.90700946,0.00014612,2]
[400108477,1767125438059,-1588.90700946,0.00014612,2]
[400108478,1767125438068,-1588.90700946,0.00014612,2]
[400108479,1767125438077,-1588.90700946,0.00014612,2]
[400108480,1767125438087,-300.0,0.00014612,2]
[400108481,1767125438096,-50000.0,0.00014613,2]
[400108482,1767125438105,-11541.2359181,0.00014614,2]
[400108483,1767125438114,-181.87665,0.00015068,2]
[400108484,1767125438123,-500.0,0.00015202,2]
[400108485,1767125438132,-1680.0,0.00015366,2]
[400108486,1767125438142,-2076.54175843,0.00015681,2]
[400108487,1767125438151,-500.0,0.00015686,2]
[400108488,1767125438160,-177.0,0.0001572,2]
[400108489,1767125438170,-420.0,0.00015998,2]
[400108490,1767125438179,-876.91156958,0.00016065,2]
[400108491,1767125438188,-322.62,0.0001681,3]
[400108492,1767125438198,-161.31,0.0001681,3]
[400108493,1767125438207,-806.58,0.0001681,3]
[400108494,1767125438216,-274.221745,0.00016821,2]
[400108495,1767125438225,-14048.3607819,0.00016821,2]
[400108496,1767125438235,-499.6023682,0.00016821,2]
[400108497,1767125438245,-604.1524928,0.00016821,2]
[400108498,1767125438254,-500.0,0.000169,2]
[400108499,1767125438263,-2351.0,0.00016902,2]
[400108500,1767125438273,-600.0,0.00017156,2]
[400108501,1767125438283,-500.0,0.00017486,2]
[400108502,1767125438292,-500.0,0.00017486,2]
[400108503,1767125438301,-500.0,0.00017486,2]
[400108504,1767125438311,-500.0,0.00017487,2]
[400108505,1767125438320,-500.0,0.00017487,2]
[400108506,1767125438330,-587.0,0.00017516,2]
[400108507,1767125438339,-204.0,0.0001772,2]
[400108508,1767125438348,-645.24,0.0001818,3]
[400108509,1767125438358,-179.84890833,0.00018454,2]
[400108510,1767125438367,-500.0,0.00018593,2]
[400108511,1767125438376,-3292.0,0.00018593,2]
[400108512,1767125438385,-720.0,0.00018872,2]
[400108513,1767125438395,-604.1524928,0.00019156,2]
[400108514,1767125438404,-500.0,0.00019178,2]
[400108515,1767125438413,-500.0,0.00019178,2]
[400108516,1767125438423,-500.0,0.00019178,2]
[400108517,1767125438432,-500.0,0.00019178,2]
[400108518,1767125438441,-823.0,0.00019178,2]
[400108519,1767125438451,-500.0,0.00019178,2]
[400108520,1767125438460,-500.0,0.00019178,2]
[400108521,1767125438469,-426.99451032,0.00019178,2]
[400108522,1767125438479,-500.0,0.00019312,2]
[400108523,1767125438488,-500.0,0.00019312,2]
[400108524,1767125438498,-500.0,0.00019312,2]
[400108525,1767125438508,-500.0,0.00019312,2]
[400108526,1767125438517,-500.0,0.00019312,2]
[400108527,1767125438527,-500.0,0.00019312,2]
[400108528,1767125438536,-500.0,0.00019313,2]
[400108529,1767125438545,-14048.3607819,0.00019314,2]
[400108530,1767125438555,-1106.8,0.000194,2]
[400108531,1767125438564,-499.6023682,0.00019443,2]
[400108532,1767125438573,-231.0,0.0001972,2]
[400108533,1767125438582,-189.41665005,0.00019831,2]
[400108534,1767125438591,-340.60902013,0.00019831,2]
[400108535,1767125438601,-252.11473888,0.00019831,2]
[400108536,1767125438610,-453.80652998,0.00019831,2]
[400108537,1767125438619,-806.76716442,0.00019831,2]
[400108538,1767125438629,-1260.5736944,0.00019831,2]
[400108539,1767125438638,-1813.41089382,0.00019831,2]
[400108540,1767125438647,-274.221745,0.00019853,2]
[400108541,1767125438657,-179.30196423,0.0002,2]
[400108542,1767125438666,-876.91156958,0.00020404,2]
[400108543,1767125438676,-214.6,0.0002045,2]
[400108544,1767125438686,-425.41,0.0002045,2]
[400108545,1767125438695,-4353.0,0.00020452,2]
[400108546,1767125438705,-276.0,0.00020648,2]
[400108547,1767125438715,-864.0,0.00020759,2]
[400108548,1767125438725,-839.136277,0.00020759,2]
[400108549,1767125438734,-839.136277,0.00020759,2]
[400108550,1767125438744,-839.136277,0.00020759,2]
[400108551,1767125438754,-839.136277,0.00020759,2]
[400108552,1767125438763,-278.40592187,0.00020841,2]
[400108553,1767125438772,-500.0,0.00020862,2]
[400108554,1767125438782,-96037.67640377,0.0002099,2]
[400108555,1767125438792,-839.136277,0.0002099,2]
[400108556,1767125438802,-839.136277,0.0002099,2]
[400108557,1767125438811,-839.136277,0.0002099,2]
[400108558,1767125438821,-839.136277,0.0002099,2]
[400108559,1767125438834,-151.0,0.0002099,2]
[400108560,1767125438844,-323.728035,0.00021006,2]
[400108561,1767125438854,-604.1524928,0.00021491,2]
[400108562,1767125438863,-895.95214656,0.00021717,2]
[400108563,1767125438874,-258.0,0.0002172,2]
[400108564,1767125438883,-151.0,0.000218,3]
[400108565,1767125438892,-151.0,0.000218,4]
[400108566,1767125438902,-151.0,0.000218,3]
[400108567,1767125438913,-151.0,0.000218,4]
[400108568,1767125438922,-151.0,0.000218,3]
[400108569,1767125438931,-14048.3607819,0.00021806,2]
[400108570,1767125438941,-1000000.0,0.00021817,2]
[400108571,1767125438951,-151.0,0.00021817,2]
[400108572,1767125438960,-151.0,0.00021817,2]
[400108573,1767125438970,-151.0,0.00021817,2]
[400108574,1767125438979,-151.0,0.00021817,2]
[400108575,1767125438989,-151.0,0.00021817,2]
[400108576,1767125438998,-839.136277,0.00021817,2]
[400108577,1767125439008,-839.136277,0.00021817,2]
[400108578,1767125439017,-839.136277,0.00021817,2]
[400108579,1767125439027,-839.136277,0.00021817,2]
[400108580,1767125439036,-151.0,0.00021817,2]
[400108581,1767125439045,-8363.91,0.000219,2]
[400108582,1767125439055,-500.0,0.00021903,2]
[400108583,1767125439065,-500.0,0.00021915,2]
[400108584,1767125439074,-500.0,0.00021915,2]
[400108585,1767125439085,-500.0,0.00021916,2]
[400108586,1767125439094,-221.34309167,0.00021917,2]
[400108587,1767125439104,-232.74596108,0.00021917,2]
[400108588,1767125439114,-418.05862632,0.00021917,2]
[400108589,1767125439124,-520.91238729,0.00021917,2]
[400108590,1767125439134,-229.40932393,0.00021917,2]
[400108591,1767125439144,-164.08947404,0.00021917,2]
[400108592,1767125439153,-490.84153265,0.00021917,2]
[400108593,1767125439163,-502.45675969,0.00021917,2]
[400108594,1767125439172,-435.03117335,0.00021917,2]
[400108595,1767125439181,-348.50363495,0.00021917,2]
[400108596,1767125439191,-500.0,0.00021917,2]
[400108597,1767125439200,-500.16157475,0.00021917,2]
[400108598,1767125439209,-500.0,0.00021917,2]
[400108599,1767125439218,-228.93348856,0.00021917,2]
[400108600,1767125439227,-371.23149605,0.00021917,2]
[400108601,1767125439236,-507.05180172,0.00021917,2]
[400108602,1767125439245,-488.95703903,0.00021917,2]
[400108603,1767125439255,-500.35952636,0.00021917,2]
[400108604,1767125439264,-373.31877062,0.00021917,2]
[400108605,1767125439273,-327.07577076,0.00021917,2]
[400108606,1767125439283,-500.0,0.00021917,2]
[400108607,1767125439292,-481.30405838,0.00021917,2]
[400108608,1767125439302,-269.33315418,0.00021917,2]
[400108609,1767125439312,-423.1302761,0.00021917,2]
[400108610,1767125439321,-180.69490441,0.00021917,2]
[400108611,1767125439331,-234.09703627,0.00021917,2]
[400108612,1767125439340,-500.72316954,0.00021917,2]
[400108613,1767125439351,-433.93542274,0.00021917,2]
[400108614,1767125439361,-504.70511967,0.00021917,2]
[400108615,1767125439371,-433.42504771,0.00021917,2]
[400108616,1767125439380,-217.61030986,0.00021917,2]
[400108617,1767125439390,-602.50773801,0.00021917,2]
[400108618,1767125439401,-342.42427954,0.00021917,2]
[400108619,1767125439411,-252.77574783,0.00021917,2]
[400108620,1767125439420,-458.50221432,0.00021917,2]
[400108621,1767125439430,-210.76009802,0.00021917,2]
[400108622,1767125439440,-408.62031573,0.00021917,2]
[400108623,1767125439449,-231.29106344,0.00021917,2]
[400108624,1767125439458,-333.92618675,0.00021917,2]
[400108625,1767125439467,-393.17886351,0.00021917,2]
[400108626,1767125439477,-170.27376167,0.00021917,2]
[400108627,1767125439486,-495.99114627,0.00021917,2]
[400108628,1767125439496,-230.65898868,0.00021917,2]
[400108629,1767125439505,-413.36013582,0.00021917,2]
[400108630,1767125439515,-479.81812409,0.00021917,2]
[400108631,1767125439524,-252.67655097,0.00021917,2]
[400108632,1767125439533,-319.94055293,0.00021917,2]
[400108633,1767125439543,-500.71951521,0.00021917,2]
[400108634,1767125439552,-285.81164378,0.00021917,2]
[400108635,1767125439562,-287.73030606,0.00021917,2]
[400108636,1767125439673,-621.60965745,0.00021917,2]
[400108637,1767125439683,-290.29849253,0.00021917,2]
[400108638,1767125439692,-285.47899851,0.00021917,2]
[400108639,1767125439701,-510.83887357,0.00021917,2]
[400108640,1767125439710,-501.2051815,0.00021917,2]
[400108641,1767125439720,-500.0,0.00021917,2]
[400108642,1767125439729,-504.58997569,0.00021917,2]
[400108643,1767125439738,-176.45954335,0.00021917,2]
[400108644,1767125439748,-287.08953983,0.00021917,2]
[400108645,1767125439757,-500.0,0.00021917,2]
[400108646,1767125439766,-348.13867843,0.00021917,2]
[400108647,1767125439776,-251.46424513,0.00021917,2]
[400108648,1767125439785,-277.83974303,0.00021917,2]
[400108649,1767125439794,-251.40795676,0.00021917,2]
[400108650,1767125439803,-273.21298075,0.00021917,2]
[400108651,1767125439813,-333.92290273,0.00021917,2]
[400108652,1767125439823,-461.88902203,0.00021917,2]
[400108653,1767125439836,-523.45254658,0.00021917,2]
[400108654,1767125439845,-248.26170506,0.00021917,2]
[400108655,1767125439855,-267.3602502,0.00021917,2]
[400108657,1767125439864,-226.89443186,0.00021917,2]
[400108658,1767125439874,-427.12423668,0.00021917,2]
[400108660,1767125439883,-449.59900032,0.00021917,2]
[400108662,1767125439893,-502.04455924,0.00021917,2]
[400108663,1767125439903,-202.81752215,0.00021917,2]
[400108664,1767125439913,-539.26104911,0.00021917,2]
[400108665,1767125439922,-553.39742545,0.00021917,2]
[400108666,1767125439932,-462.69119327,0.00021917,2]
[400108667,1767125439941,-236.61985417,0.00021917,2]
[400108668,1767125439951,-427.7689353,0.00021917,2]
[400108669,1767125439960,-363.68099683,0.00021917,2]
[400108670,1767125439969,-286.70770784,0.00021917,2]
[400108671,1767125439978,-417.46274433,0.00021917,2]
[400108672,1767125439989,-458.8505797,0.00021917,2]
[400108673,1767125439998,-512.66522346,0.00021917,2]
[400108674,1767125440007,-440.86023557,0.00021917,2]
[400108675,1767125440017,-502.29520556,0.00021917,2]
[400108676,1767125440026,-509.16060867,0.00021917,2]
[400108677,1767125440036,-478.07414937,0.00021917,2]
[400108678,1767125440045,-352.39098907,0.00021917,2]
[400108679,1767125440055,-311.40132827,0.00021917,2]
[400108680,1767125440065,-447.97991166,0.00021917,2]
[400108681,1767125440074,-512.34251123,0.00021917,2]
[400108682,1767125440083,-187.59533833,0.00021917,2]
[400108683,1767125440092,-533.10444288,0.00021917,2]
[400108684,1767125440102,-269.915319,0.00021917,2]
[400108685,1767125440112,-528.21056679,0.00021917,2]
[400108686,1767125440121,-370.28388052,0.00021917,2]
[400108687,1767125440131,-474.75266645,0.00021917,2]
[400108688,1767125440140,-275.59920934,0.00021917,2]
[400108689,1767125440149,-468.90629687,0.00021917,2]
[400108690,1767125440159,-638.97867053,0.00021917,2]
[400108691,1767125440168,-488.66177969,0.00021917,2]
[400108692,1767125440177,-192.71983482,0.00021917,2]
[400108693,1767125440187,-400.33130937,0.00021917,2]
[400108694,1767125440196,-500.0,0.00021917,2]
[400108695,1767125440206,-591.65441113,0.00021917,2]
[400108696,1767125440215,-403.96121089,0.00021917,2]
[400108697,1767125440225,-257.247478,0.00021917,2]
[400108698,1767125440234,-520.96277231,0.00021917,2]
[400108699,1767125440243,-308.41590209,0.00021917,2]
[400108700,1767125440253,-497.71228405,0.00021917,2]
[400108701,1767125440263,-514.79568651,0.00021917,2]
[400108702,1767125440272,-422.94798478,0.00021917,2]
[400108703,1767125440281,-507.99851295,0.00021917,2]
[400108704,1767125440291,-571.21392777,0.00021917,2]
[400108705,1767125440300,-3824.025903,0.00021917,2]
[400108706,1767125440310,-500.0,0.00021917,2]
[400108708,1767125440319,-478.21623539,0.00021917,2]
[400108709,1767125440328,-464.76334376,0.00021917,2]
[400108710,1767125440338,-509.18604531,0.00021917,2]
[400108711,1767125440347,-547.50276936,0.00021917,2]
[400108712,1767125440356,-501.12093149,0.00021917,2]
[400108713,1767125440366,-377.57132978,0.00021917,2]
[400108714,1767125440375,-264.9392192,0.00021917,2]
[400108715,1767125440384,-500.0,0.00021917,2]
[400108716,1767125440394,-316.16014628,0.00021917,2]
[400108717,1767125440403,-550.90127323,0.00021917,2]
[400108718,1767125440412,-500.0,0.00021917,2]
[400108719,1767125440422,-509.70359709,0.00021917,2]
[400108720,1767125440431,-295.2511899,0.00021917,2]
[400108721,1767125440440,-216.60341199,0.00021917,2]
[400108722,1767125440449,-426.20730668,0.00021917,2]
[400108723,1767125440458,-454.07829285,0.00021917,2]
[400108724,1767125440467,-359.95549187,0.00021917,2]
[400108725,1767125440476,-476.90769747,0.00021917,2]
[400108726,1767125440485,-494.20939552,0.00021917,2]
[400108727,1767125440495,-218.777766,0.00021917,2]
[400108728,1767125440504,-500.0,0.00021917,2]
[400108729,1767125440513,-500.0,0.00021917,2]
[400108730,1767125440522,-497.98100807,0.00021917,2]
[400108731,1767125440532,-501.22712139,0.00021917,2]
[400108732,1767125440542,-408.64927459,0.00021917,2]
[400108733,1767125440552,-253.69247233,0.00021917,2]
[400108734,1767125440561,-223.21748018,0.00021917,2]
[400108735,1767125440570,-354.67878225,0.00021917,2]
[400108736,1767125440579,-500.0,0.00021917,2]
[400108737,1767125440588,-500.0,0.00021917,2]
[400108738,1767125440598,-367.5163094,0.00021917,2]
[400108739,1767125440607,-486.84467399,0.00021917,2]
[400108740,1767125440616,-486.74530578,0.00021917,2]
[400108741,1767125440625,-488.40239306,0.00021917,2]
[400108742,1767125440635,-322.31792125,0.00021917,2]
[400108743,1767125440644,-484.32908546,0.00021917,2]
[400108744,1767125440653,-500.0,0.00021917,2]
[400108745,1767125440662,-256.42020615,0.00021917,2]
[400108746,1767125440671,-380.57291504,0.00021917,2]
[400108747,1767125440680,-273.05832441,0.00021917,2]
[400108748,1767125440689,-222.40611764,0.00021917,2]
[400108749,1767125440699,-206.65781947,0.00021917,2]
[400108750,1767125440708,-362.03368786,0.00021917,2]
[400108751,1767125440717,-229.74671603,0.00021917,2]
[400108752,1767125440726,-244.9309608,0.00021917,2]
[400108753,1767125440735,-335.91898352,0.00021917,2]
[400108754,1767125440745,-500.0,0.00021917,2]
[400108755,1767125440754,-361.11966938,0.00021917,2]
[400108756,1767125440764,-179.66551101,0.00021917,2]
[400108757,1767125440773,-381.41652046,0.00021917,2]
[400108758,1767125440782,-332.84203168,0.00021917,2]
[400108759,1767125440791,-468.20528792,0.00021917,2]
[400108760,1767125440800,-331.31461136,0.00021917,2]
[400108761,1767125440809,-244.84208293,0.00021917,2]
[400108762,1767125440818,-468.46876956,0.00021917,2]
[400108763,1767125440829,-1000.1468578,0.00021917,2]
[400108764,1767125440839,-496.84809073,0.00021917,2]
[400108765,1767125440848,-151.0,0.00021917,2]
[400108766,1767125440857,-1000.52584611,0.00021917,2]
[400108767,1767125440867,-534.80878098,0.00021917,2]
[400108768,1767125440877,-489.36109289,0.00021917,2]
[400108769,1767125440887,-500.0,0.00021917,2]
[400108770,1767125440897,-276.79786927,0.00021917,2]
[400108771,1767125440908,-242.92590961,0.00021917,2]
[400108772,1767125440917,-238.33993024,0.00021917,2]
[400108773,1767125440927,-495.99265184,0.00021917,2]
[400108774,1767125440937,-415.78305326,0.00021917,2]
[400108775,1767125440947,-213.95949455,0.00021917,2]
[400108776,1767125440957,-507.48530578,0.00021917,2]
[400108777,1767125440967,-507.39394315,0.00021917,2]
[400108778,1767125440976,-591.60116078,0.00021917,2]
[400108779,1767125440986,-293.41497811,0.00021917,2]
[400108780,1767125440995,-296.24098014,0.00021917,2]
[400108781,1767125441005,-501.68456333,0.00021917,2]
[400108782,1767125441014,-234.10449026,0.00021917,2]
[400108783,1767125441023,-246.85883541,0.00021917,2]
[400108784,1767125441032,-448.81665893,0.00021917,2]
[400108785,1767125441042,-182.95883851,0.00021917,2]
[400108786,1767125441052,-491.35885865,0.00021917,2]
[400108787,1767125441061,-395.08803825,0.00021917,2]
[400108788,1767125441071,-212.49369694,0.00021917,2]
[400108789,1767125441080,-464.56381766,0.00021917,2]
[400108790,1767125441089,-416.42753173,0.00021917,2]
[400108791,1767125441099,-313.26838819,0.00021917,2]
[400108792,1767125441108,-464.92212663,0.00021917,2]
[400108793,1767125441118,-486.41954782,0.00021917,2]
[400108794,1767125441128,-427.11920997,0.00021917,2]
[400108795,1767125441137,-573.23461641,0.00021917,2]
[400108796,1767125441147,-499.82329983,0.00021917,2]
[400108797,1767125441156,-241.812254,0.00021917,2]
[400108798,1767125441165,-180.75323926,0.00021917,2]
[400108799,1767125441175,-492.69043668,0.00021917,2]
[400108800,1767125441184,-198.05075534,0.00021917,2]
[400108801,1767125441193,-151.0,0.00021917,2]
[400108802,1767125441203,-151.0,0.00021917,2]
[400108803,1767125441212,-519.17552996,0.00021917,2]
[400108804,1767125441222,-151.0,0.00021917,2]
[400108805,1767125441231,-191.682356,0.00021917,2]
[400108806,1767125441241,-233.95773104,0.00021917,2]
[400108807,1767125441250,-246.39472202,0.00021917,2]
[400108808,1767125441259,-626.49848798,0.00021917,2]
[400108809,1767125441269,-509.52473583,0.00021917,2]
[400108810,1767125441278,-500.0,0.00021917,2]
[400108811,1767125441287,-251.7142983,0.00021917,2]
[400108812,1767125441296,-214.62430021,0.00021917,2]
[400108813,1767125441306,-232.50445623,0.00021917,2]
[400108814,1767125441315,-417.36752029,0.00021917,2]
[400108815,1767125441325,-409.31799387,0.00021917,2]
[400108816,1767125441334,-441.1912262,0.00021917,2]
[400108817,1767125441344,-216.64018666,0.00021917,2]
[400108818,1767125441354,-288.94230664,0.00021917,2]
[400108819,1767125441363,-254.64616056,0.00021917,2]
[400108820,1767125441373,-285.08202354,0.00021917,2]
[400108821,1767125441382,-352.12809256,0.00021917,2]
[400108822,1767125441392,-194.53004279,0.00021917,2]
[400108823,1767125441401,-151.0,0.00021917,2]
[400108824,1767125441411,-295.22030358,0.00021917,2]
[400108825,1767125441421,-461.31122067,0.00021917,2]
[400108826,1767125441431,-592.33106367,0.00021917,2]
[400108827,1767125441440,-193.15983236,0.00021917,2]
[400108828,1767125441450,-191.99719017,0.00021917,2]
[400108829,1767125441459,-452.76867007,0.00021917,2]
[400108830,1767125441468,-276.59515798,0.00021917,2]
[400108831,1767125441477,-526.06878392,0.00021917,2]